[Event "*** Titled Tuesday Blitz"]
[Site "Chess.com"]
[Date "2020.04.28"]
[Round "3"]
[White "Tsubasa"]
[Black "Bubi6"]
[Result "0-1"]
[WhiteElo "2412"]
[BlackElo "2647"]
[TimeControl "180+1"]
[EndTime "10:29:00 PDT"]
[Termination "Bubi6 won by resignation"]

1. d4 {[%clk 0:03:00.9]} 1... c5 {[%clk 0:02:59.2]} 2. d5 {[%clk 0:03:00.4]}
2... e6 {[%clk 0:02:59.7]} 3. e4 {[%clk 0:02:59.9]} 3... exd5 {[%clk 0:02:59.2]}
4. exd5 {[%clk 0:03:00]} 4... d6 {[%clk 0:03:00.1]} 5. Nc3 {[%clk 0:02:58.1]}
5... Ne7 {[%clk 0:03:01]} 6. h3 {[%clk 0:02:54.5]} 6... Ng6 {[%clk 0:03:01]} 7.
Nf3 {[%clk 0:02:54.3]} 7... Be7 {[%clk 0:03:01.5]} 8. Be2 {[%clk 0:02:49.2]}
8... O-O {[%clk 0:03:02.4]} 9. O-O {[%clk 0:02:49.2]} 9... a6 {[%clk 0:03:03.3]}
10. a4 {[%clk 0:02:48.3]} 10... Re8 {[%clk 0:03:03.9]} 11. Be3 {[%clk
0:02:45.9]} 11... Bf6 {[%clk 0:03:04.1]} 12. Nd2 {[%clk 0:02:35.7]} 12... Nd7
{[%clk 0:03:03.1]} 13. Nc4 {[%clk 0:02:28.9]} 13... Nb6 {[%clk 0:03:02.5]} 14.
a5 {[%clk 0:02:22.6]} 14... Nxc4 {[%clk 0:03:01.1]} 15. Bxc4 {[%clk 0:02:22.9]}
15... Bg5 {[%clk 0:02:58.8]} 16. Qd2 {[%clk 0:01:54.8]} 16... Bxe3 {[%clk
0:02:48.7]} 17. fxe3 {[%clk 0:01:55.7]} 17... Qg5 {[%clk 0:02:47.4]} 18. Kh1
{[%clk 0:01:25.8]} 18... Qxe3 {[%clk 0:02:37.9]} 19. Qxe3 {[%clk 0:01:18.1]}
19... Rxe3 {[%clk 0:02:37.5]} 20. Rae1 {[%clk 0:01:17.3]} 20... Rxe1 {[%clk
0:02:37.2]} 21. Rxe1 {[%clk 0:01:17.4]} 21... Bd7 {[%clk 0:02:30.9]} 22. Re2
{[%clk 0:00:55.1]} 22... f5 {[%clk 0:02:25.9]} 23. Kg1 {[%clk 0:00:48.4]} 23...
Ne5 {[%clk 0:02:25.4]} 24. Bb3 {[%clk 0:00:44.9]} 24... Re8 {[%clk 0:02:24.9]}
25. Kf2 {[%clk 0:00:42.1]} 25... g5 {[%clk 0:02:23.9]} 26. Ba4 {[%clk
0:00:41.8]} 26... Bxa4 {[%clk 0:02:19.6]} 27. Nxa4 {[%clk 0:00:41.8]} 27... Kf7
{[%clk 0:02:19.8]} 28. Nb6 {[%clk 0:00:41.9]} 28... f4 {[%clk 0:02:14.6]} 29. c3
{[%clk 0:00:40.9]} 29... h5 {[%clk 0:02:13.2]} 30. b4 {[%clk 0:00:37.8]} 30...
c4 {[%clk 0:02:13.1]} 31. Kf1 {[%clk 0:00:28.9]} 31... g4 {[%clk 0:02:09.8]} 32.
hxg4 {[%clk 0:00:26.5]} 32... hxg4 {[%clk 0:02:10.7]} 33. Re4 {[%clk 0:00:26.4]}
33... Kf6 {[%clk 0:01:09.4]} 34. Nxc4 {[%clk 0:00:23]} 34... Nxc4 {[%clk
0:01:04.6]} 35. Rxf4+ {[%clk 0:00:20.6]} 35... Ke5 {[%clk 0:01:01.2]} 36. Rxc4
{[%clk 0:00:21.5]} 36... g3 {[%clk 0:00:56.1]} 37. Rd4 {[%clk 0:00:20.1]} 37...
Rf8+ {[%clk 0:00:55.1]} 38. Kg1 {[%clk 0:00:17.5]} 38... Rf2 {[%clk 0:00:52.3]}
39. Rd3 {[%clk 0:00:17]} 39... Kf4 {[%clk 0:00:52.6]} 40. Rf3+ {[%clk
0:00:15.6]} 40... Rxf3 {[%clk 0:00:52.1]} 41. gxf3 {[%clk 0:00:15.8]} 41... Kxf3
{[%clk 0:00:51.1]} 42. c4 {[%clk 0:00:15.9]} 42... Ke4 {[%clk 0:00:51.6]} 43.
Kg2 {[%clk 0:00:14.8]} 43... Kd4 {[%clk 0:00:49.5]} 44. c5 {[%clk 0:00:14.7]}
44... Kxd5 {[%clk 0:00:49.5]} 45. cxd6 {[%clk 0:00:13.5]} 45... Kxd6 {[%clk
0:00:49.9]} 46. Kxg3 {[%clk 0:00:14.1]} 46... Kd5 {[%clk 0:00:50.4]} 47. Kf4
{[%clk 0:00:13.7]} 47... Kc4 {[%clk 0:00:50.9]} 48. Ke4 {[%clk 0:00:14.4]} 48...
Kxb4 {[%clk 0:00:50.8]} 49. Kd4 {[%clk 0:00:15.3]} 49... Kxa5 {[%clk 0:00:50.8]}
0-1

[Event "*** Titled Tuesday Blitz"]
[Site "Chess.com"]
[Date "2020.04.28"]
[Round "3"]
[White "Vusatiuk_Vladimir"]
[Black "Anaj14"]
[Result "0-1"]
[WhiteElo "2334"]
[BlackElo "2210"]
[TimeControl "180+1"]
[EndTime "10:29:00 PDT"]
[Termination "Anaj14 won by resignation"]

1. d4 {[%clk 0:03:00.9]} 1... d6 {[%clk 0:02:58.8]} 2. Nc3 {[%clk 0:03:00.1]}
2... a6 {[%clk 0:02:55.9]} 3. e4 {[%clk 0:02:59.5]} 3... g6 {[%clk 0:02:56.3]}
4. a4 {[%clk 0:02:58.4]} 4... Bg7 {[%clk 0:02:56.2]} 5. Be3 {[%clk 0:02:58.6]}
5... Nf6 {[%clk 0:02:54]} 6. f3 {[%clk 0:02:58.5]} 6... Nbd7 {[%clk 0:02:47.8]}
7. Qd2 {[%clk 0:02:57.7]} 7... h5 {[%clk 0:02:47.5]} 8. Nh3 {[%clk 0:02:47]}
8... O-O {[%clk 0:02:44.7]} 9. Bh6 {[%clk 0:02:44.8]} 9... c5 {[%clk 0:02:43.1]}
10. Bxg7 {[%clk 0:02:37.7]} 10... Kxg7 {[%clk 0:02:44]} 11. Be2 {[%clk
0:02:22.8]} 11... cxd4 {[%clk 0:02:40]} 12. Qxd4 {[%clk 0:02:23.7]} 12... Ne5
{[%clk 0:02:40]} 13. O-O-O {[%clk 0:02:11.7]} 13... Bxh3 {[%clk 0:02:37.4]} 14.
gxh3 {[%clk 0:02:11]} 14... Rc8 {[%clk 0:02:29.6]} 15. f4 {[%clk 0:02:08.7]}
15... Nc6 {[%clk 0:02:29.7]} 16. Qe3 {[%clk 0:02:06.6]} 16... Qa5 {[%clk
0:02:28.3]} 17. Rhg1 {[%clk 0:01:55]} 17... Qc5 {[%clk 0:02:13.8]} 18. Qxc5
{[%clk 0:01:46.9]} 18... dxc5 {[%clk 0:02:13.5]} 19. e5 {[%clk 0:01:47.4]} 19...
Ng8 {[%clk 0:02:08.9]} 20. Bxh5 {[%clk 0:01:46]} 20... Nd4 {[%clk 0:02:07.1]}
21. Bg4 {[%clk 0:01:40.5]} 21... e6 {[%clk 0:02:05.4]} 22. Ne4 {[%clk 0:01:37]}
22... Nh6 {[%clk 0:01:59.2]} 23. Nd6 {[%clk 0:01:08.7]} 23... Rb8 {[%clk
0:01:55.2]} 24. c3 {[%clk 0:01:03.7]} 24... Nxg4 {[%clk 0:01:42.7]} 25. hxg4
{[%clk 0:01:01.6]} 25... Ne2+ {[%clk 0:01:42.3]} 26. Kd2 {[%clk 0:01:01.7]}
26... Nxg1 {[%clk 0:01:43.1]} 27. Rxg1 {[%clk 0:01:02.1]} 27... b5 {[%clk
0:01:42.9]} 28. a5 {[%clk 0:01:01.1]} 28... c4 {[%clk 0:01:41.2]} 29. Ke3 {[%clk
0:00:52.8]} 29... Rbd8 {[%clk 0:01:40.2]} 30. Rg2 {[%clk 0:00:51.4]} 30... Rh8
{[%clk 0:01:36.2]} 31. f5 {[%clk 0:00:47.3]} 31... g5 {[%clk 0:01:24.3]} 32. Ne4
{[%clk 0:00:41.2]} 32... Rh3+ {[%clk 0:01:13.7]} 33. Ke2 {[%clk 0:00:40.4]}
33... Kh6 {[%clk 0:01:13.8]} 34. Nf2 {[%clk 0:00:36.4]} 34... Rh4 {[%clk
0:01:10.5]} 35. h3 {[%clk 0:00:36.7]} 35... Rd5 {[%clk 0:01:08.7]} 36. Kf3
{[%clk 0:00:34.2]} 36... Rxe5 {[%clk 0:01:06.4]} 37. fxe6 {[%clk 0:00:34.8]}
37... Rxe6 {[%clk 0:01:03.5]} 38. Rg1 {[%clk 0:00:34.4]} 38... Kg6 {[%clk
0:00:58]} 39. Rd1 {[%clk 0:00:34.2]} 39... Rh8 {[%clk 0:00:57.7]} 40. Rd5 {[%clk
0:00:34.4]} 40... f6 {[%clk 0:00:55.8]} 41. Kg3 {[%clk 0:00:26.6]} 41... Re3+
{[%clk 0:00:54.2]} 42. Kg2 {[%clk 0:00:25.9]} 42... Rhe8 {[%clk 0:00:53.6]} 43.
Kg1 {[%clk 0:00:17.5]} 43... Re1+ {[%clk 0:00:52.3]} 44. Kg2 {[%clk 0:00:17.5]}
44... R1e2 {[%clk 0:00:52.9]} 45. Kf3 {[%clk 0:00:17.8]} 45... R8e3+ {[%clk
0:00:51.9]} 46. Kg2 {[%clk 0:00:18.3]} 46... Rxb2 {[%clk 0:00:50]} 47. Rd6
{[%clk 0:00:16.9]} 47... Ree2 {[%clk 0:00:49.8]} 0-1

[Event "*** Titled Tuesday Blitz"]
[Site "Chess.com"]
[Date "2020.04.28"]
[Round "3"]
[White "smshk35"]
[Black "Nbk90"]
[Result "0-1"]
[WhiteElo "2370"]
[BlackElo "2572"]
[TimeControl "180+1"]
[EndTime "10:29:01 PDT"]
[Termination "Nbk90 won by checkmate"]

1. e4 {[%clk 0:03:00.9]} 1... e5 {[%clk 0:02:57.6]} 2. Nf3 {[%clk 0:03:00.5]}
2... Nc6 {[%clk 0:02:57.7]} 3. d4 {[%clk 0:03:00.2]} 3... exd4 {[%clk
0:02:57.2]} 4. Nxd4 {[%clk 0:03:01.1]} 4... Bb4+ {[%clk 0:02:57.4]} 5. c3 {[%clk
0:03:00.6]} 5... Bc5 {[%clk 0:02:57.3]} 6. Be3 {[%clk 0:02:58]} 6... Bb6 {[%clk
0:02:57.3]} 7. Bc4 {[%clk 0:02:55.3]} 7... d6 {[%clk 0:02:55.6]} 8. O-O {[%clk
0:02:49.1]} 8... Nf6 {[%clk 0:02:53.9]} 9. Nd2 {[%clk 0:02:45.7]} 9... O-O
{[%clk 0:02:53]} 10. h3 {[%clk 0:02:41.3]} 10... Re8 {[%clk 0:02:51.9]} 11. Qf3
{[%clk 0:02:37.7]} 11... Ne5 {[%clk 0:02:46.3]} 12. Qe2 {[%clk 0:02:27.4]} 12...
Nxc4 {[%clk 0:02:41.1]} 13. Qxc4 {[%clk 0:02:15.8]} 13... Nxe4 {[%clk
0:02:34.7]} 14. Rae1 {[%clk 0:02:11]} 14... d5 {[%clk 0:02:24.6]} 15. Qb3 {[%clk
0:02:04.9]} 15... c5 {[%clk 0:02:11.1]} 16. N4f3 {[%clk 0:01:53.2]} 16... Bf5
{[%clk 0:02:04.7]} 17. Nxe4 {[%clk 0:01:48.7]} 17... Bxe4 {[%clk 0:02:02.7]} 18.
Rd1 {[%clk 0:01:46.3]} 18... c4 {[%clk 0:01:54.8]} 19. Bxb6 {[%clk 0:01:15.5]}
19... axb6 {[%clk 0:01:49.7]} 20. Qb4 {[%clk 0:01:14.3]} 20... Bxf3 {[%clk
0:01:43]} 21. gxf3 {[%clk 0:01:10.7]} 21... Rxa2 {[%clk 0:01:39.2]} 22. Rd4
{[%clk 0:01:10.1]} 22... Qg5+ {[%clk 0:01:18.7]} 23. Rg4 {[%clk 0:01:06.9]}
23... Qf6 {[%clk 0:01:16]} 24. f4 {[%clk 0:00:44.8]} 24... Raa8 {[%clk
0:01:09.7]} 25. Qb5 {[%clk 0:00:40.2]} 25... Rad8 {[%clk 0:01:08.4]} 26. Rd1
{[%clk 0:00:38.5]} 26... Qc6 {[%clk 0:00:49.9]} 27. Qb4 {[%clk 0:00:38.5]} 27...
h6 {[%clk 0:00:44.9]} 28. f5 {[%clk 0:00:37.5]} 28... b5 {[%clk 0:00:38.1]} 29.
Rgd4 {[%clk 0:00:28.9]} 29... Re5 {[%clk 0:00:37]} 30. Qa5 {[%clk 0:00:26.1]}
30... Rde8 {[%clk 0:00:33.9]} 31. f6 {[%clk 0:00:21.4]} 31... Qxf6 {[%clk
0:00:33.7]} 32. Qxb5 {[%clk 0:00:20.5]} 32... Re2 {[%clk 0:00:30.8]} 33. f4
{[%clk 0:00:09.2]} 33... Qg6+ {[%clk 0:00:30]} 34. Kf1 {[%clk 0:00:09.8]} 34...
Qg2# {[%clk 0:00:30]} 0-1

[Event "*** Titled Tuesday Blitz"]
[Site "Chess.com"]
[Date "2020.04.28"]
[Round "3"]
[White "Munkhzul_Turmunkh"]
[Black "ajdemipopushi"]
[Result "0-1"]
[WhiteElo "2504"]
[BlackElo "2295"]
[TimeControl "180+1"]
[EndTime "10:29:02 PDT"]
[Termination "ajdemipopushi won by resignation"]

1. e4 {[%clk 0:03:00.9]} 1... c5 {[%clk 0:02:59.4]} 2. Nf3 {[%clk 0:03:01]} 2...
g6 {[%clk 0:02:59.8]} 3. d4 {[%clk 0:02:58.8]} 3... cxd4 {[%clk 0:03:00.1]} 4.
Nxd4 {[%clk 0:02:59.5]} 4... Bg7 {[%clk 0:03:00.5]} 5. c4 {[%clk 0:02:59.2]}
5... Nc6 {[%clk 0:03:01.2]} 6. Be3 {[%clk 0:02:58.5]} 6... Nf6 {[%clk
0:03:01.8]} 7. Nc3 {[%clk 0:02:58.6]} 7... Nxd4 {[%clk 0:03:01.8]} 8. Bxd4
{[%clk 0:02:58.2]} 8... Qa5 {[%clk 0:03:02.4]} 9. Be2 {[%clk 0:02:44.5]} 9... d6
{[%clk 0:03:02.4]} 10. O-O {[%clk 0:02:43.3]} 10... O-O {[%clk 0:03:02.6]} 11.
Rc1 {[%clk 0:02:38.3]} 11... Be6 {[%clk 0:03:02.2]} 12. b3 {[%clk 0:02:32.5]}
12... Rfc8 {[%clk 0:03:01.7]} 13. Qd3 {[%clk 0:02:28.3]} 13... a6 {[%clk
0:02:59.8]} 14. Rfd1 {[%clk 0:02:26.9]} 14... Nd7 {[%clk 0:02:33]} 15. Bxg7
{[%clk 0:02:11]} 15... Kxg7 {[%clk 0:02:32.6]} 16. Qd4+ {[%clk 0:02:11.1]} 16...
f6 {[%clk 0:02:31.8]} 17. Bf1 {[%clk 0:01:57.2]} 17... Rab8 {[%clk 0:02:24.9]}
18. Re1 {[%clk 0:01:45.1]} 18... Qc5 {[%clk 0:02:20.6]} 19. Qxc5 {[%clk
0:01:36.5]} 19... Rxc5 {[%clk 0:02:15.6]} 20. Nd5 {[%clk 0:01:33]} 20... Kf7
{[%clk 0:02:13.4]} 21. Nf4 {[%clk 0:01:28.3]} 21... g5 {[%clk 0:01:42.7]} 22.
Nxe6 {[%clk 0:01:03.3]} 22... Kxe6 {[%clk 0:01:42.6]} 23. Be2 {[%clk 0:01:03.7]}
23... Ne5 {[%clk 0:01:40.4]} 24. Red1 {[%clk 0:00:59.4]} 24... Rbc8 {[%clk
0:01:38.2]} 25. g3 {[%clk 0:00:45.5]} 25... g4 {[%clk 0:01:36.9]} 26. Kg2 {[%clk
0:00:42.5]} 26... h5 {[%clk 0:01:36.7]} 27. h3 {[%clk 0:00:38.9]} 27... b5
{[%clk 0:01:36.6]} 28. hxg4 {[%clk 0:00:37.7]} 28... hxg4 {[%clk 0:01:36.4]} 29.
Rd5 {[%clk 0:00:36.2]} 29... bxc4 {[%clk 0:01:34.1]} 30. Rxc5 {[%clk 0:00:35.8]}
30... Rxc5 {[%clk 0:01:33.7]} 31. bxc4 {[%clk 0:00:34.6]} 31... Kd7 {[%clk
0:01:25.5]} 32. Rc3 {[%clk 0:00:33.7]} 32... Kc6 {[%clk 0:01:23.5]} 33. Kf1
{[%clk 0:00:30.4]} 33... Ra5 {[%clk 0:01:22.4]} 34. Rc2 {[%clk 0:00:26.9]} 34...
Kc5 {[%clk 0:01:22.1]} 35. Ke1 {[%clk 0:00:27.1]} 35... Ra4 {[%clk 0:01:22.2]}
36. Kd2 {[%clk 0:00:24.1]} 36... Ra3 {[%clk 0:01:22.3]} 37. Kc1 {[%clk
0:00:19.4]} 37... Nd3+ {[%clk 0:01:08.9]} 38. Kb1 {[%clk 0:00:16]} 38... Nxf2
{[%clk 0:01:07.9]} 39. Kb2 {[%clk 0:00:16]} 39... Rxg3 {[%clk 0:01:06.3]} 40.
Bf1 {[%clk 0:00:07.5]} 40... Nxe4 {[%clk 0:00:47.2]} 0-1

[Event "*** Titled Tuesday Blitz"]
[Site "Chess.com"]
[Date "2020.04.28"]
[Round "3"]
[White "madalin18"]
[Black "ama18"]
[Result "1-0"]
[WhiteElo "2111"]
[BlackElo "2465"]
[TimeControl "180+1"]
[EndTime "10:29:03 PDT"]
[Termination "madalin18 won by checkmate"]

1. e4 {[%clk 0:03:00.9]} 1... c5 {[%clk 0:02:59.7]} 2. Nf3 {[%clk 0:03:01.1]}
2... d6 {[%clk 0:02:59.7]} 3. d4 {[%clk 0:03:01.4]} 3... cxd4 {[%clk 0:03:00.6]}
4. Nxd4 {[%clk 0:03:01.7]} 4... Nf6 {[%clk 0:03:00.9]} 5. Nc3 {[%clk 0:03:02.3]}
5... a6 {[%clk 0:03:01.3]} 6. Bg5 {[%clk 0:03:01.3]} 6... Nbd7 {[%clk
0:03:00.8]} 7. Qe2 {[%clk 0:03:00.7]} 7... h6 {[%clk 0:03:00.3]} 8. Bh4 {[%clk
0:03:00.1]} 8... g6 {[%clk 0:02:59.7]} 9. O-O-O {[%clk 0:02:59.1]} 9... e5
{[%clk 0:02:52.7]} 10. Nb3 {[%clk 0:02:53.4]} 10... Be7 {[%clk 0:02:48.7]} 11.
f4 {[%clk 0:02:46.8]} 11... exf4 {[%clk 0:02:45.5]} 12. Bxf6 {[%clk 0:02:35]}
12... Bxf6 {[%clk 0:02:15.6]} 13. Rxd6 {[%clk 0:02:34.1]} 13... Bxc3 {[%clk
0:02:09.6]} 14. bxc3 {[%clk 0:02:30.5]} 14... O-O {[%clk 0:02:09.3]} 15. Qf3
{[%clk 0:02:03.3]} 15... Qc7 {[%clk 0:02:04.9]} 16. Qxf4 {[%clk 0:01:55.7]}
16... Qxc3 {[%clk 0:01:58.5]} 17. Bd3 {[%clk 0:01:42.5]} 17... Ne5 {[%clk
0:01:50.4]} 18. Qxh6 {[%clk 0:01:22.2]} 18... a5 {[%clk 0:01:37.2]} 19. Qd2
{[%clk 0:00:26.1]} 19... Qc7 {[%clk 0:01:35.7]} 20. Rd5 {[%clk 0:00:25.9]} 20...
a4 {[%clk 0:01:33.3]} 21. Nd4 {[%clk 0:00:22.5]} 21... a3 {[%clk 0:01:18.7]} 22.
Nb5 {[%clk 0:00:22.1]} 22... Qe7 {[%clk 0:01:05.2]} 23. Qf4 {[%clk 0:00:17.1]}
23... Nc6 {[%clk 0:00:59.4]} 24. h4 {[%clk 0:00:15.3]} 24... Nb4 {[%clk
0:00:40.9]} 25. Rd6 {[%clk 0:00:15.2]} 25... Nxa2+ {[%clk 0:00:28.1]} 26. Kd2
{[%clk 0:00:15.2]} 26... Be6 {[%clk 0:00:24.3]} 27. h5 {[%clk 0:00:14.5]} 27...
g5 {[%clk 0:00:23.3]} 28. Qe5 {[%clk 0:00:11.5]} 28... Rad8 {[%clk 0:00:21.2]}
29. h6 {[%clk 0:00:10.3]} 29... Kh7 {[%clk 0:00:13]} 30. Qg7# {[%clk 0:00:09.9]}
1-0

[Event "*** Titled Tuesday Blitz"]
[Site "Chess.com"]
[Date "2020.04.28"]
[Round "3"]
[White "Dr_Thomas_Quilter"]
[Black "ARMQUEEN"]
[Result "1-0"]
[WhiteElo "2271"]
[BlackElo "2305"]
[TimeControl "180+1"]
[EndTime "10:29:03 PDT"]
[Termination "Dr_Thomas_Quilter won by checkmate"]

1. d4 {[%clk 0:03:00.9]} 1... Nf6 {[%clk 0:02:57.2]} 2. Nc3 {[%clk 0:02:59.3]}
2... c5 {[%clk 0:02:57.2]} 3. d5 {[%clk 0:02:59.4]} 3... e6 {[%clk 0:02:56.9]}
4. dxe6 {[%clk 0:02:55.5]} 4... fxe6 {[%clk 0:02:56.5]} 5. e4 {[%clk 0:02:55.9]}
5... d5 {[%clk 0:02:56]} 6. Bd3 {[%clk 0:02:50]} 6... Be7 {[%clk 0:02:54.5]} 7.
Nf3 {[%clk 0:02:49.4]} 7... O-O {[%clk 0:02:53.9]} 8. O-O {[%clk 0:02:40.2]}
8... Nc6 {[%clk 0:02:53.4]} 9. Re1 {[%clk 0:02:29.4]} 9... d4 {[%clk 0:02:47.5]}
10. Ne2 {[%clk 0:02:27.5]} 10... e5 {[%clk 0:02:48]} 11. Ng3 {[%clk 0:02:18.5]}
11... Bg4 {[%clk 0:02:47.2]} 12. a4 {[%clk 0:02:09.9]} 12... Nb4 {[%clk
0:02:41.4]} 13. Bc4+ {[%clk 0:02:09.1]} 13... Kh8 {[%clk 0:02:40.1]} 14. c3
{[%clk 0:01:54.9]} 14... dxc3 {[%clk 0:02:37.2]} 15. bxc3 {[%clk 0:01:54.9]}
15... Qxd1 {[%clk 0:02:36.6]} 16. Rxd1 {[%clk 0:01:55]} 16... Nc6 {[%clk
0:02:30.1]} 17. Be2 {[%clk 0:01:24.5]} 17... Ne8 {[%clk 0:02:19.7]} 18. h3
{[%clk 0:01:23.4]} 18... Bxf3 {[%clk 0:02:18.8]} 19. Bxf3 {[%clk 0:01:23.4]}
19... Nd6 {[%clk 0:02:17.8]} 20. Be3 {[%clk 0:01:22.7]} 20... Nc4 {[%clk
0:02:16.6]} 21. Nf5 {[%clk 0:01:14.8]} 21... Nxe3 {[%clk 0:02:14.2]} 22. Nxe3
{[%clk 0:01:13]} 22... Bg5 {[%clk 0:02:11.8]} 23. Nd5 {[%clk 0:01:12.2]} 23...
Na5 {[%clk 0:02:10.1]} 24. Nc7 {[%clk 0:01:10.9]} 24... Rac8 {[%clk 0:02:06.2]}
25. Ne6 {[%clk 0:01:11.1]} 25... Rxf3 {[%clk 0:02:00.1]} 26. gxf3 {[%clk
0:01:04.4]} 26... Bf6 {[%clk 0:01:59.6]} 27. Rd7 {[%clk 0:01:02.6]} 27... h6
{[%clk 0:01:46.4]} 28. Nc7 {[%clk 0:01:01]} 28... Bh4 {[%clk 0:01:33]} 29. Rad1
{[%clk 0:00:53.9]} 29... Rf8 {[%clk 0:01:28.9]} 30. Kg2 {[%clk 0:00:52.2]} 30...
Rf6 {[%clk 0:01:27.4]} 31. R7d6 {[%clk 0:00:44.8]} 31... Rf7 {[%clk 0:01:26.1]}
32. Rd7 {[%clk 0:00:37.6]} 32... Rf4 {[%clk 0:01:25.7]} 33. Ne6 {[%clk
0:00:34.8]} 33... Rf6 {[%clk 0:01:20.7]} 34. Rd8+ {[%clk 0:00:31]} 34... Kh7
{[%clk 0:01:20]} 35. Nf8+ {[%clk 0:00:30.9]} 35... Rxf8 {[%clk 0:01:17.4]} 36.
Rxf8 {[%clk 0:00:31.5]} 36... Bf6 {[%clk 0:01:17.2]} 37. Rd7 {[%clk 0:00:29.9]}
37... Kg6 {[%clk 0:01:16.5]} 38. Ra8 {[%clk 0:00:26.2]} 38... a6 {[%clk
0:01:15.3]} 39. Rc8 {[%clk 0:00:25]} 39... b6 {[%clk 0:01:14.7]} 40. Ra8 {[%clk
0:00:23.2]} 40... Nc4 {[%clk 0:01:11.8]} 41. Rxa6 {[%clk 0:00:22.5]} 41... Kg5
{[%clk 0:01:11.6]} 42. Raa7 {[%clk 0:00:22.1]} 42... Kf4 {[%clk 0:01:11.2]} 43.
Rxg7 {[%clk 0:00:21.4]} 43... Bxg7 {[%clk 0:01:11]} 44. Rxg7 {[%clk 0:00:22]}
44... h5 {[%clk 0:01:11.1]} 45. Rh7 {[%clk 0:00:20.8]} 45... Kg5 {[%clk
0:01:10.5]} 46. Rg7+ {[%clk 0:00:21.4]} 46... Kf6 {[%clk 0:01:10.5]} 47. Rb7
{[%clk 0:00:21.9]} 47... Kg6 {[%clk 0:01:09.4]} 48. Kg3 {[%clk 0:00:21.6]} 48...
Kf6 {[%clk 0:01:09.2]} 49. f4 {[%clk 0:00:21.9]} 49... Ke6 {[%clk 0:01:05.6]}
50. f5+ {[%clk 0:00:21.4]} 50... Kf6 {[%clk 0:01:05.9]} 51. f4 {[%clk
0:00:21.6]} 51... h4+ {[%clk 0:01:02.2]} 52. Kg4 {[%clk 0:00:20]} 52... exf4
{[%clk 0:01:03.1]} 53. Kxf4 {[%clk 0:00:20]} 53... Nd6 {[%clk 0:00:57.1]} 54.
e5# {[%clk 0:00:19.9]} 1-0

[Event "*** Titled Tuesday Blitz"]
[Site "Chess.com"]
[Date "2020.04.28"]
[Round "3"]
[White "talaicito"]
[Black "CraiggoryC"]
[Result "0-1"]
[WhiteElo "2287"]
[BlackElo "2075"]
[TimeControl "180+1"]
[EndTime "10:29:04 PDT"]
[Termination "CraiggoryC won on time"]

1. d4 {[%clk 0:03:00.9]} 1... Nf6 {[%clk 0:02:32.7]} 2. Nc3 {[%clk 0:03:00.9]}
2... d5 {[%clk 0:02:30.7]} 3. Bf4 {[%clk 0:03:00.9]} 3... e6 {[%clk 0:02:25.5]}
4. e3 {[%clk 0:03:00.9]} 4... Bd6 {[%clk 0:02:24.9]} 5. Nf3 {[%clk 0:03:01.1]}
5... Bxf4 {[%clk 0:02:23.4]} 6. exf4 {[%clk 0:03:01.9]} 6... c5 {[%clk
0:02:21.7]} 7. dxc5 {[%clk 0:02:50.9]} 7... Qa5 {[%clk 0:02:09.6]} 8. Bd3 {[%clk
0:02:50.9]} 8... Nbd7 {[%clk 0:02:00.5]} 9. O-O {[%clk 0:02:39.3]} 9... Nxc5
{[%clk 0:01:58.7]} 10. Ne5 {[%clk 0:02:28.1]} 10... O-O {[%clk 0:01:52.3]} 11.
a3 {[%clk 0:02:18.4]} 11... Nxd3 {[%clk 0:01:45.3]} 12. Qxd3 {[%clk 0:02:19.3]}
12... Nd7 {[%clk 0:01:34.8]} 13. Ne2 {[%clk 0:02:07.5]} 13... Nxe5 {[%clk
0:01:19.6]} 14. fxe5 {[%clk 0:02:08.4]} 14... b6 {[%clk 0:01:19.9]} 15. b4
{[%clk 0:01:30.8]} 15... Qa4 {[%clk 0:01:12.9]} 16. Nd4 {[%clk 0:01:22.8]} 16...
Ba6 {[%clk 0:00:52.7]} 17. b5 {[%clk 0:01:21.9]} 17... Bb7 {[%clk 0:00:52.2]}
18. Rab1 {[%clk 0:00:46.7]} 18... Qc4 {[%clk 0:00:46.2]} 19. Qe3 {[%clk
0:00:44.2]} 19... Rac8 {[%clk 0:00:42.7]} 20. Rfd1 {[%clk 0:00:41.1]} 20... a6
{[%clk 0:00:22.6]} 21. bxa6 {[%clk 0:00:32.2]} 21... Qxa6 {[%clk 0:00:21.3]} 22.
h4 {[%clk 0:00:27.6]} 22... Rc4 {[%clk 0:00:20.8]} 23. h5 {[%clk 0:00:23.8]}
23... h6 {[%clk 0:00:20.8]} 24. Rb3 {[%clk 0:00:18.9]} 24... Rfc8 {[%clk
0:00:17.1]} 25. Rdb1 {[%clk 0:00:18.4]} 25... Qa5 {[%clk 0:00:11]} 26. Rxb6
{[%clk 0:00:15.4]} 26... Ba6 {[%clk 0:00:11.2]} 27. R6b3 {[%clk 0:00:07.3]}
27... Rc3 {[%clk 0:00:10.3]} 28. Rxc3 {[%clk 0:00:06.4]} 28... Rxc3 {[%clk
0:00:10.3]} 29. Qd2 {[%clk 0:00:04.1]} 29... Rxa3 {[%clk 0:00:08.8]} 30. Rb8+
{[%clk 0:00:02.5]} 30... Kh7 {[%clk 0:00:08.1]} 0-1

[Event "*** Titled Tuesday Blitz"]
[Site "Chess.com"]
[Date "2020.04.28"]
[Round "3"]
[White "Maghalashvili"]
[Black "White_Ghost"]
[Result "1-0"]
[WhiteElo "2791"]
[BlackElo "2449"]
[TimeControl "180+1"]
[EndTime "10:29:05 PDT"]
[Termination "Maghalashvili won by checkmate"]

1. Nf3 {[%clk 0:00:28.3]} 1... Nf6 {[%clk 0:02:58.2]} 2. g3 {[%clk 0:00:29.2]}
2... g6 {[%clk 0:02:57.3]} 3. Bg2 {[%clk 0:00:30.1]} 3... Bg7 {[%clk 0:02:57.9]}
4. O-O {[%clk 0:00:31]} 4... O-O {[%clk 0:02:58.3]} 5. c4 {[%clk 0:00:31.9]}
5... d6 {[%clk 0:02:53.8]} 6. d4 {[%clk 0:00:31.7]} 6... Nbd7 {[%clk 0:02:53.6]}
7. Nc3 {[%clk 0:00:32.6]} 7... e5 {[%clk 0:02:52.6]} 8. h3 {[%clk 0:00:33.5]}
8... Re8 {[%clk 0:02:51.3]} 9. e4 {[%clk 0:00:33.8]} 9... exd4 {[%clk
0:02:50.7]} 10. Nxd4 {[%clk 0:00:34.7]} 10... a6 {[%clk 0:02:50.5]} 11. Re1
{[%clk 0:00:34.9]} 11... Rb8 {[%clk 0:02:50.7]} 12. Bf4 {[%clk 0:00:34.3]} 12...
Nc5 {[%clk 0:02:36.4]} 13. Qd2 {[%clk 0:00:33.1]} 13... Ne6 {[%clk 0:02:28.3]}
14. Be3 {[%clk 0:00:33.1]} 14... Nd7 {[%clk 0:02:23.7]} 15. Rad1 {[%clk
0:00:32.5]} 15... Ne5 {[%clk 0:02:16.7]} 16. b3 {[%clk 0:00:32.3]} 16... Nxd4
{[%clk 0:01:50.9]} 17. Bxd4 {[%clk 0:00:32.4]} 17... Be6 {[%clk 0:01:26.9]} 18.
f4 {[%clk 0:00:32.2]} 18... Nc6 {[%clk 0:01:26.2]} 19. Bxg7 {[%clk 0:00:32.4]}
19... Kxg7 {[%clk 0:01:27.1]} 20. Nd5 {[%clk 0:00:33.3]} 20... Bxd5 {[%clk
0:01:16]} 21. cxd5 {[%clk 0:00:33.1]} 21... Ne7 {[%clk 0:01:10.7]} 22. e5 {[%clk
0:00:33.4]} 22... Qd7 {[%clk 0:01:03.7]} 23. e6 {[%clk 0:00:32.8]} 23... Qb5
{[%clk 0:00:50.9]} 24. Qd4+ {[%clk 0:00:32.1]} 24... Kg8 {[%clk 0:00:47.4]} 25.
Qf6 {[%clk 0:00:32.2]} 25... fxe6 {[%clk 0:00:42.2]} 26. Rxe6 {[%clk 0:00:31.3]}
26... Nf5 {[%clk 0:00:33.7]} 27. Rde1 {[%clk 0:00:28.3]} 27... Nxg3 {[%clk
0:00:22.3]} 28. Re7 {[%clk 0:00:23.8]} 28... Rxe7 {[%clk 0:00:11.9]} 29. Rxe7
{[%clk 0:00:23.6]} 29... Qc5+ {[%clk 0:00:04.6]} 30. Kh2 {[%clk 0:00:21.7]}
30... Nh5 {[%clk 0:00:03.8]} 31. Qf7+ {[%clk 0:00:21.1]} 31... Kh8 {[%clk
0:00:03.5]} 32. Qxh7# {[%clk 0:00:22]} 1-0